bitfinex-derivatives/quotes_SOLF0:USTF0_20260304
["timestamp","ask_amount","ask_price","bid_price","bid_amount"]
[1772658405649,3.8892431,92.712,92.654,9.709]
[1772658405948,3.8892431,92.727,92.671,3.8419519]
[1772658406250,19.82383762,92.791,92.618,151.089]
[1772658406251,3.8892431,92.749,92.691,3.8419519]
[1772658407250,3.8892431,92.767,92.71,3.35156193]
[1772658407454,3.35156193,92.76,92.71,3.35156193]
[1772658408343,3.35156193,92.76,92.717,9.702]
[1772658408546,3.8892431,92.767,92.717,9.702]
[1772658409348,3.92304431,92.751,92.707,9.703]
[1772658409850,3.92304431,92.77,92.708,4.02422442]
[1772658410856,3.92304431,92.77,92.723,4.02422442]
[1772658411055,3.92304431,92.797,92.723,4.02422442]
[1772658411756,3.92304431,92.795,92.701,4.02422442]
[1772658412259,3.92304431,92.779,92.714,9.702]
[1772658412450,3.92304431,92.779,92.701,4.02422442]
[1772658413248,3.92304431,92.779,92.723,9.701]
[1772658415153,3.92304431,92.779,92.68,7.1733786]
[1772658415360,0.06848121,92.76,92.732,4.02422442]
[1772658415853,3.92304431,92.795,92.732,4.02422442]
[1772658416460,3.92304431,92.795,92.74,9.7]
[1772658417658,3.92304431,92.795,92.749,9.699]
[1772658418262,0.06805313,92.781,92.749,9.699]
[1772658419759,0.06805313,92.781,92.739,9.7]
[1772658420256,3.99109744,92.781,92.739,9.7]
[1772658420861,0.06805313,92.781,92.749,9.699]
[1772658421462,3.92304431,92.826,92.755,4.02422442]
[1772658421858,3.92304431,92.815,92.755,4.02422442]
[1772658422060,3.92304431,92.789,92.721,4.02422442]
[1772658422761,3.92304431,92.778,92.721,4.02422442]
[1772658423058,3.92304431,92.778,92.681,4.02422442]
[1772658423262,3.92304431,92.769,92.681,4.02422442]
[1772658424359,3.92304431,92.766,92.712,9.703]
[1772658427166,3.92304431,92.766,92.73,0.06794889]
[1772658427372,3.92304431,92.761,92.703,9.704]
[1772658428256,3.92304431,92.749,92.677,4.02422442]
[1772658428458,3.35027053,92.72,92.677,4.02422442]
[1772658429062,3.35027053,92.72,92.683,9.706]
[1772658429266,3.35027053,92.72,92.677,4.02422442]
[1772658429470,3.35027053,92.7,92.661,4.02422442]
[1772658430467,3.35027053,92.7,92.655,9.709]
[1772658430668,3.35027053,92.71,92.66,3.35027053]
[1772658430871,3.35027053,92.71,92.661,4.02422442]
[1772658431470,3.35027053,92.71,92.66,3.35027053]
[1772658431471,3.92304431,92.719,92.665,4.02422442]
[1772658432271,3.92304431,92.719,92.67,3.35027053]
[1772658432574,3.92304431,92.708,92.651,4.02422442]
[1772658433469,3.92304431,92.708,92.65,3.35027053]
[1772658433470,3.35027053,92.7,92.652,4.02422442]
[1772658433969,3.92304431,92.708,92.652,4.02422442]
[1772658434175,3.35027053,92.72,92.67,3.35027053]
[1772658435273,3.35027053,92.72,92.67,7.37449495]
[1772658435778,3.92304431,92.723,92.671,4.02422442]
[1772658435974,3.35027053,92.73,92.68,3.35027053]
[1772658436179,3.35027053,92.73,92.671,4.02422442]
[1772658436376,3.35027053,92.72,92.676,9.706]
[1772658437979,3.92304431,92.729,92.681,4.02422442]
[1772658438575,9.7,92.734,92.681,13.73022442]
[1772658438771,3.91620964,92.733,92.681,13.73022442]
[1772658440481,9.701,92.73,92.681,13.73022442]
[1772658441178,13.61720964,92.73,92.681,13.73022442]
[1772658443879,3.91620964,92.725,92.641,3.7691598]
[1772658444575,3.91620964,92.725,92.666,3.7691598]
[1772658445985,13.61720964,92.725,92.666,3.7691598]
[1772658446483,3.64446102,92.724,92.666,3.7691598]
[1772658446684,9.702,92.721,92.669,9.707]
[1772658446880,3.64446102,92.72,92.666,3.7691598]
[1772658447081,3.64446102,92.72,92.64,7.1784292]
[1772658447286,3.64446102,92.72,92.641,3.91901538]
[1772658447682,3.64446102,92.709,92.661,9.708]
[1772658448278,7.1784292,92.73,92.62,7.1784292]
[1772658448279,3.64446102,92.706,92.655,3.91901538]
[1772658449391,3.64446102,92.706,92.657,3.91901538]
[1772658450389,3.64446102,92.706,92.662,9.708]
[1772658450993,0.06878062,92.691,92.662,9.708]
[1772658451290,0.06878062,92.691,92.662,13.62701538]
[1772658453293,0.06878062,92.691,92.654,9.709]
[1772658453786,3.64446102,92.706,92.654,9.709]
[1772658454585,9.704,92.696,92.654,9.709]
[1772658454788,3.64446102,92.729,92.646,3.91901538]
[1772658456490,9.702,92.714,92.669,9.707]
[1772658456893,3.64446102,92.714,92.667,3.91901538]
[1772658457195,0.06810945,92.701,92.667,3.91901538]
[1772658459389,0.06810945,92.701,92.668,9.707]
[1772658465396,0.06810945,92.701,92.65,3.35102694]
[1772658465397,0.06810945,92.701,92.674,9.707]
[1772658466205,0.06810945,92.701,92.669,3.91901538]
[1772658467808,0.06810945,92.701,92.671,9.707]
[1772658469911,0.06810945,92.701,92.669,3.91901538]
[1772658470311,0.06810945,92.701,92.623,19.424]
[1772658470312,3.73088554,92.698,92.655,3.88196321]
[1772658470613,3.35102694,92.69,92.646,9.709]
[1772658472517,3.35102694,92.68,92.641,3.88196321]
[1772658473009,3.73088554,92.679,92.638,9.71]
[1772658473707,3.73088554,92.679,92.602,19.429]
[1772658473708,3.35102694,92.66,92.596,3.88196321]
[1772658473912,3.35102694,92.68,92.621,3.88196321]
[1772658474112,3.73088554,92.683,92.64,3.35102694]
[1772658474313,3.73088554,92.699,92.65,3.35102694]
[1772658474510,3.73088554,92.716,92.67,3.35102694]
[1772658475412,9.702,92.715,92.67,3.35102694]
[1772658475715,3.73088554,92.716,92.67,3.35102694]
[1772658475911,3.73088554,92.715,92.661,3.88196321]
[1772658476112,3.73088554,92.715,92.67,3.35102694]
[1772658476814,0.06807377,92.702,92.67,3.35102694]
[1772658477013,0.06807377,92.702,92.671,3.88196321]
[1772658477413,0.06807377,92.702,92.672,3.88196321]
[1772658480113,0.06807377,92.702,92.67,3.35102694]
[1772658480114,0.06807377,92.702,92.676,3.88196321]
[1772658481717,3.73088554,92.729,92.681,3.88196321]
[1772658481917,3.73088554,92.743,92.694,3.88196321]
[1772658482121,3.35102694,92.77,92.72,3.35102694]
[1772658482612,3.73088554,92.769,92.72,3.35102694]
[1772658482811,3.35102694,92.77,92.711,3.88196321]
[1772658482812,3.73088554,92.768,92.711,3.88196321]
[1772658483419,3.73088554,92.758,92.71,3.35102694]
[1772658483716,7.08191248,92.75,92.699,9.704]
[1772658484222,9.699,92.747,92.696,3.88196321]
[1772658484415,3.73088554,92.729,92.64,3.88196321]
[1772658484616,3.73088554,92.729,92.673,3.88196321]
[1772658484812,3.35102694,92.71,92.673,3.88196321]
[1772658485020,3.35102694,92.71,92.657,3.88196321]
[1772658485214,3.73088554,92.719,92.657,3.88196321]
[1772658485215,3.35102694,92.7,92.657,3.88196321]
[1772658487524,9.703,92.707,92.657,13.58996321]
[1772658488624,3.73088554,92.706,92.657,13.58996321]
[1772658488824,9.703,92.705,92.657,13.58996321]
[1772658489723,13.43388554,92.705,92.657,13.58996321]
[1772658491320,3.35149562,92.69,92.599,3.88196321]
[1772658491524,3.35149562,92.69,92.64,7.23345883]
[1772658491826,3.73088554,92.699,92.641,3.88196321]
[1772658492525,9.704,92.696,92.646,3.88196321]
[1772658492826,3.73088554,92.695,92.646,3.88196321]
[1772658493021,3.35149562,92.68,92.646,3.88196321]
[1772658493527,9.704,92.704,92.651,3.88196321]
[1772658494025,3.73088554,92.712,92.67,7.23345883]
[1772658494226,3.35149562,92.72,92.67,7.23345883]
[1772658495622,9.702,92.715,92.67,3.88196321]
[1772658496227,9.703,92.708,92.67,3.88196321]
[1772658499927,3.35149562,92.68,92.632,3.56781697]
[1772658500830,3.35149562,92.67,92.632,3.56781697]
[1772658502530,9.707,92.669,92.632,3.56781697]
[1772658504023,17.16310965,92.697,92.641,3.56781697]
[1772658504225,19.4,92.739,92.641,3.56781697]
[1772658504226,3.35149562,92.7,92.641,3.56781697]
[1772658504633,9.704,92.695,92.646,3.56781697]
[1772658505435,0.06827616,92.68,92.646,3.56781697]
[1772658505837,0.06827616,92.68,92.625,3.70130303]
[1772658505838,3.35149562,92.67,92.625,3.70130303]
[1772658508840,9.707,92.671,92.625,3.70130303]
[1772658509340,0.06838772,92.657,92.625,3.70130303]
[1772658509937,0.06838772,92.657,92.616,13.41430303]
[1772658510242,0.06838772,92.657,92.617,3.70130303]
[1772658510442,9.708,92.664,92.617,3.70130303]
[1772658510942,3.35149562,92.67,92.621,3.70130303]
[1772658510943,0.00074736,92.646,92.621,3.70130303]
[1772658511141,3.35149562,92.69,92.631,3.70130303]
[1772658511342,3.66391675,92.688,92.631,3.70130303]
[1772658511542,3.66391675,92.679,92.631,3.70130303]
[1772658512044,3.66391675,92.679,92.641,9.71]
[1772658512341,3.66391675,92.679,92.631,3.70130303]
[1772658512940,3.66391675,92.679,92.634,3.70130303]
[1772658513135,3.35149562,92.69,92.641,3.70130303]
[1772658513340,3.35149562,92.69,92.57,26.79209242]
[1772658513341,3.66391675,92.659,92.6,3.35149562]
[1772658513536,3.35149562,92.68,92.624,3.70130303]
[1772658513741,3.35149562,92.69,92.641,3.70130303]
[1772658514144,3.35149562,92.69,92.641,13.41130303]
[1772658514447,3.66391675,92.689,92.641,13.41130303]
[1772658516241,3.66391675,92.689,92.642,3.70130303]
[1772658517846,13.36891675,92.689,92.642,3.70130303]
[1772658521049,9.705,92.685,92.644,3.70130303]
[1772658521346,3.66391675,92.684,92.644,3.70130303]
[1772658521943,3.66391675,92.679,92.63,3.70130303]
[1772658522342,3.35149562,92.66,92.613,3.70130303]
[1772658522638,19.408,92.703,92.613,3.70130303]
[1772658522639,3.35149562,92.65,92.613,3.70130303]
[1772658523248,3.35149562,92.65,92.599,3.70130303]
[1772658523850,3.66391675,92.649,92.599,3.70130303]
[1772658524550,9.71,92.643,92.6,3.70130303]
[1772658526553,3.66391675,92.642,92.598,232.54160345]
[1772658526851,3.66391675,92.642,92.599,9.714]
[1772658527448,3.66391675,92.642,92.605,9.714]
[1772658528847,9.707,92.672,92.623,9.712]
[1772658529050,3.61291314,92.649,92.6,3.35149562]
[1772658530144,0.06818001,92.634,92.601,3.56528479]
[1772658530346,0.06818001,92.634,92.605,9.714]
[1772658531453,0.06818001,92.634,92.611,3.56528479]
[1772658531647,3.61291314,92.663,92.62,3.35149562]
[1772658531852,3.61291314,92.663,92.624,9.712]
[1772658536060,3.61291314,92.663,92.624,13.27728479]
[1772658536959,3.61291314,92.689,92.632,3.56528479]
[1772658537161,3.61291314,92.689,92.64,3.35149562]
[1772658537364,3.61291314,92.689,92.632,3.56528479]
[1772658537963,3.61291314,92.679,92.62,3.35149562]
[1772658538265,3.61291314,92.679,92.618,3.56528479]
[1772658538266,3.61291314,92.659,92.618,3.56528479]
[1772658539265,3.61291314,92.659,92.616,9.713]
[1772658539466,0.06846811,92.648,92.616,9.713]
[1772658539866,0.06846811,92.648,92.602,3.56528479]
[1772658541369,0.06846811,92.648,92.614,3.56528479]
[1772658541570,3.61291314,92.689,92.631,3.56528479]
[1772658541967,3.61291314,92.689,92.63,3.35149562]
[1772658541968,3.61291314,92.669,92.617,3.56528479]
[1772658543169,3.61291314,92.667,92.622,13.27728479]
[1772658543359,3.61291314,92.667,92.623,3.56528479]
[1772658544165,3.61291314,92.667,92.63,3.35149562]
[1772658544369,3.61291314,92.667,92.623,3.56528479]
[1772658544871,3.61291314,92.667,92.61,6.91678041]
[1772658545169,3.61291314,92.667,92.611,3.56528479]
[1772658545373,9.708,92.664,92.617,9.712]
[1772658545671,9.708,92.664,92.62,3.35149562]
[1772658548968,9.708,92.661,92.62,3.35149562]
[1772658549564,3.61291314,92.663,92.623,9.712]
[1772658551474,3.61291314,92.663,92.63,3.35389576]
[1772658551772,3.61291314,92.663,92.623,13.27728479]
[1772658552076,9.706,92.676,92.631,3.56528479]
[1772658552375,3.61291314,92.695,92.66,3.35389576]
[1772658552977,3.61291314,92.695,92.67,3.35389576]
[1772658553375,3.61291314,92.708,92.67,3.35389576]
[1772658555476,9.704,92.704,92.67,3.35389576]
[1772658556674,9.704,92.698,92.67,3.35389576]
[1772658556876,9.704,92.698,92.653,3.56528479]
[1772658556877,9.704,92.698,92.66,3.35389576]
[1772658560181,9.705,92.69,92.653,3.56528479]
[1772658562578,9.705,92.69,92.66,3.35389576]
[1772658563776,9.705,92.69,92.653,3.56528479]
[1772658563982,9.705,92.69,92.66,3.35389576]
[1772658564488,13.597309,92.698,92.66,3.35389576]
[1772658564682,3.893309,92.712,92.67,3.35389576]
[1772658565089,3.893309,92.712,92.66,3.35389576]
[1772658565588,3.893309,92.712,92.66,6.91701615]
[1772658566488,3.893309,92.712,92.661,3.85216496]
[1772658566688,3.893309,92.712,92.67,3.35389576]
[1772658566889,3.893309,92.712,92.677,0.06807889]
[1772658567185,3.69372763,92.701,92.65,3.35389576]
[1772658567379,346.54476533,92.72,92.65,3.35389576]
[1772658567380,3.69372763,92.699,92.65,3.35389576]
[1772658568388,9.705,92.693,92.65,3.35389576]
[1772658568588,13.39872763,92.693,92.65,3.35389576]
[1772658569989,3.69372763,92.688,92.65,3.35389576]
[1772658570189,3.69372763,92.688,92.646,3.85216496]
[1772658571490,9.705,92.686,92.646,3.85216496]
[1772658571886,3.69372763,92.669,92.615,3.85216496]
[1772658573186,9.91511857,92.711,92.615,3.85216496]
[1772658573187,3.69372763,92.659,92.615,3.85216496]
[1772658573582,3.69372763,92.659,92.614,238.80643621]
[1772658573789,3.69372763,92.659,92.53,177.0]
[1772658573790,3.69372763,92.649,92.6,3.85216496]
[1772658574295,3.69372763,92.649,92.6,7.20606072]
[1772658575589,9.71,92.64,92.6,7.20606072]
[1772658575791,9.71,92.64,92.601,3.85216496]
[1772658580399,3.69372763,92.63,92.59,3.35389576]
[1772658580599,3.69372763,92.63,92.587,3.85216496]
[1772658581098,3.69372763,92.636,92.591,3.85216496]
[1772658581501,3.69372763,92.636,92.6,3.35389576]
[1772658582394,3.69372763,92.666,92.63,3.35389576]
[1772658582996,3.69372763,92.666,92.64,3.35389576]
[1772658583202,3.69372763,92.68,92.64,3.35389576]
[1772658583501,3.69372763,92.68,92.63,3.35389576]
[1772658584502,3.69372763,92.677,92.63,3.35389576]
[1772658585502,3.69372763,92.674,92.63,3.35389576]
[1772658588003,3.69372763,92.674,92.631,3.85216496]
[1772658588404,3.69372763,92.674,92.64,3.35389576]
[1772658589104,3.69372763,92.674,92.631,3.85216496]
[1772658590301,3.83560353,92.67,92.63,3.35389576]
[1772658590506,3.83560353,92.67,92.62,3.35389576]
[1772658591007,3.83560353,92.67,92.621,3.84481012]
[1772658591707,3.83560353,92.67,92.63,3.35389576]
[1772658593711,9.706,92.678,92.631,3.84481012]
[1772658595002,3.83560353,92.675,92.631,3.84481012]
[1772658595207,3.83560353,92.675,92.63,3.35389576]
[1772658596614,9.708,92.665,92.63,3.35389576]
[1772658597713,9.708,92.665,92.623,9.712]
[1772658597913,3.83560353,92.658,92.607,3.84481012]
[1772658598413,3.83560353,92.658,92.613,9.713]
[1772658599009,3.83560353,92.649,92.601,9.714]
[1772658600314,3.35389576,92.66,92.609,3.84481012]
[1772658601011,9.709,92.656,92.613,9.713]
[1772658601409,9.709,92.656,92.613,13.55781012]
[1772658601915,9.709,92.656,92.614,3.84481012]
[1772658603819,13.54460353,92.656,92.614,3.84481012]
[1772658604314,3.83560353,92.649,92.61,3.35389576]
[1772658604621,3.83560353,92.649,92.611,3.84481012]
[1772658604916,9.709,92.651,92.614,3.84481012]
[1772658606216,19.411,92.689,92.606,9.714]
[1772658606217,3.83560353,92.644,92.606,9.714]
[1772658606818,3.83560353,92.641,92.582,3.84481012]
[1772658607114,3.83560353,92.659,92.61,3.35389576]
[1772658607322,3.83560353,92.659,92.611,3.84481012]
[1772658608518,9.708,92.656,92.613,9.713]
[1772658608718,9.708,92.656,92.613,13.55781012]
[1772658610317,9.708,92.656,92.616,9.713]
[1772658611020,9.708,92.656,92.616,13.55781012]
[1772658611217,3.83560353,92.669,92.614,3.84481012]
[1772658611416,3.83560353,92.659,92.61,3.35389576]
[1772658611622,3.83560353,92.659,92.601,3.84481012]
[1772658611816,3.83560353,92.658,92.621,9.712]
[1772658612619,3.83560353,92.656,92.614,9.713]
[1772658613622,3.83560353,92.656,92.621,9.712]
[1772658613922,134.3546174,92.7,92.65,7.19942752]
[1772658614118,134.83560353,92.7,92.66,3.3546174]
[1772658614422,3.83560353,92.699,92.66,3.3546174]
[1772658614718,3.83560353,92.699,92.659,9.708]
[1772658615222,3.83560353,92.697,92.64,3.3546174]
[1772658615827,3.83560353,92.697,92.65,3.3546174]
[1772658616422,3.83560353,92.694,92.651,9.709]
[1772658620622,3.83560353,92.694,92.658,9.708]
[1772658622034,131.0,92.7,92.66,3.3546174]
[1772658622230,131.0,92.7,92.652,3.87019217]
[1772658622231,3.73998901,92.697,92.652,3.87019217]
[1772658622731,0.0681851,92.689,92.652,3.87019217]
[1772658624335,0.0681851,92.689,92.616,3.87019217]
[1772658624336,0.22052023,92.677,92.616,3.87019217]
[1772658624532,0.0681851,92.689,92.631,3.87019217]
[1772658624731,0.22052023,92.688,92.631,3.87019217]
[1772658625228,0.22052023,92.679,92.631,3.87019217]
[1772658625627,0.22052023,92.679,92.632,9.711]
[1772658625827,0.22052023,92.679,92.63,3.3546174]
[1772658625828,0.22052023,92.679,92.633,3.82989798]
[1772658627428,0.22052023,92.679,92.635,9.711]
[1772658628537,0.22052023,92.679,92.635,13.48596972]
[1772658630544,9.92652023,92.679,92.635,13.48596972]
[1772658631937,8.16550284,92.699,92.567,151.172]
[1772658631938,131.0,92.7,92.641,3.80609106]
[1772658632144,131.0,92.7,92.661,3.80609106]
[1772658632750,0.27274295,92.698,92.644,3.80609106]
[1772658633240,0.27274295,92.694,92.646,9.709]
[1772658633738,0.27274295,92.694,92.646,3.80609106]
[1772658633739,3.3546174,92.69,92.646,3.80609106]
[1772658633944,0.25021849,92.689,92.646,3.80609106]
[1772658635345,9.705,92.686,92.646,3.80609106]
[1772658636137,0.25021849,92.689,92.646,3.80609106]
[1772658636340,0.25021849,92.689,92.646,13.51509106]
[1772658637442,9.705,92.688,92.646,13.51509106]
[1772658638139,9.705,92.688,92.646,3.80609106]
[1772658638845,131.0,92.7,92.576,151.157]
[1772658638846,131.0,92.7,92.652,3.81840653]
[1772658639041,134.3546174,92.7,92.652,3.81840653]
[1772658640345,131.0,92.7,92.652,3.81840653]
[1772658640545,9.704,92.699,92.655,13.52710103]
[1772658643147,9.705,92.692,92.655,3.81810103]
[1772658643548,3.3546174,92.69,92.655,3.81810103]
[1772658646859,3.3546174,92.67,92.627,3.80909434]
[1772658647048,131.0,92.7,92.627,3.80909434]
[1772658647049,3.3546174,92.66,92.627,3.80909434]
[1772658647253,3.3546174,92.65,92.601,3.80909434]
[1772658647858,3.3546174,92.65,92.617,9.713]
[1772658648050,3.3546174,92.65,92.617,13.52105084]
[1772658648959,3.3546174,92.66,92.622,3.80805084]
[1772658650461,3.3546174,92.66,92.623,9.712]
[1772658651561,3.3546174,92.66,92.622,3.80805084]
[1772658651761,3.3546174,92.65,92.622,3.80805084]
[1772658652162,3.3546174,92.64,92.607,3.85659756]
[1772658652964,19.41,92.693,92.593,3.85659756]
[1772658652965,3.3546174,92.63,92.593,3.85659756]
[1772658653465,3.3546174,92.64,92.595,3.85659756]
[1772658653665,0.17310283,92.662,92.601,3.85659756]
[1772658653861,3.3546174,92.66,92.611,3.85659756]
[1772658655261,3.3546174,92.65,92.611,3.85659756]
[1772658655766,9.71,92.639,92.596,9.715]
[1772658656063,3.3546174,92.63,92.596,9.715]
[1772658656461,0.16629874,92.649,92.58,3.3546174]
[1772658656462,3.3546174,92.64,92.599,9.714]
[1772658656664,3.3546174,92.64,92.599,13.57368833]
[1772658656865,3.3546174,92.63,92.582,3.85968833]
[1772658657066,3.3546174,92.62,92.583,3.85968833]
[1772658657759,3.3546174,92.64,92.583,3.85968833]
[1772658657962,3.3546174,92.63,92.583,3.85968833]
[1772658659365,3.3546174,92.63,92.584,3.84398655]
[1772658660468,3.3546174,92.63,92.589,3.87217073]
[1772658661665,3.3546174,92.63,92.591,3.87217073]
[1772658662171,3.3546174,92.62,92.573,3.86705235]
[1772658663370,3.3546174,92.62,92.581,9.716]
[1772658663769,3.3546174,92.62,92.582,3.86705235]
[1772658664466,3.3546174,92.62,92.584,3.84314483]
[1772658664866,9.712,92.626,92.584,3.84314483]
[1772658667177,3.3546174,92.61,92.569,3.84241345]
[1772658667373,3.3546174,92.6,92.541,3.84241345]
[1772658667573,3.3546174,92.61,92.561,3.84241345]
[1772658667773,0.20147106,92.623,92.561,3.84241345]
[1772658667774,3.3546174,92.62,92.561,3.84241345]
[1772658667972,0.17973519,92.609,92.561,3.84241345]
[1772658668781,0.17973519,92.606,92.561,13.56041345]
[1772658669072,16.90712763,92.652,92.551,3.85328138]
[1772658669073,3.3546174,92.59,92.551,3.85328138]
[1772658669273,3.53435259,92.59,92.551,3.85328138]
[1772658670177,0.17973519,92.59,92.551,3.85328138]
[1772658670377,3.53435259,92.59,92.551,3.85328138]
[1772658672480,3.35945615,92.59,92.538,3.96325595]
[1772658672675,3.35945615,92.57,92.524,3.96325595]
[1772658673673,124.0,92.6,92.541,3.96325595]
[1772658673674,3.35945615,92.6,92.541,3.96325595]
[1772658673981,3.35945615,92.59,92.541,3.96325595]
[1772658675485,3.35945615,92.63,92.581,3.96068914]
[1772658675875,26.71619899,92.697,92.566,3.96068914]
[1772658675876,3.35945615,92.62,92.566,3.96068914]
[1772658676075,3.35945615,92.62,92.571,4.29551185]
[1772658676283,9.712,92.619,92.571,4.29551185]
[1772658676484,3.35945615,92.62,92.571,4.29551185]
[1772658676979,3.35945615,92.59,92.553,4.29551185]
[1772658677187,19.42,92.642,92.553,4.29551185]
[1772658677188,3.35945615,92.6,92.553,4.29551185]
[1772658677683,19.42,92.642,92.553,4.29551185]
[1772658677684,3.35945615,92.59,92.553,4.29551185]
[1772658680782,19.425,92.621,92.521,4.2936374]
[1772658681084,3.35945615,92.55,92.511,1.87997342]
[1772658681276,3.35945615,92.56,92.511,1.87997342]
[1772658681483,3.35945615,92.56,92.512,4.2936374]
[1772658683085,3.35945615,92.55,92.512,4.2936374]
[1772658684286,9.719,92.559,92.512,4.2936374]
[1772658685284,9.719,92.559,92.465,19.457]
[1772658685285,3.35945615,92.54,92.491,9.726]
[1772658685484,3.35945615,92.54,92.441,19.463]
[1772658685485,3.35945615,92.56,92.501,5.22645765]
[1772658685689,3.35945615,92.56,92.511,5.22645765]
[1772658686095,3.35945615,92.55,92.511,5.22645765]
[1772658686486,3.35945615,92.54,92.511,5.22645765]
[1772658686685,9.719,92.56,92.511,5.22645765]
[1772658686686,3.35945615,92.55,92.511,5.22645765]
[1772658687490,9.719,92.56,92.511,5.22645765]
[1772658687491,3.35945615,92.56,92.511,5.22645765]
[1772658687984,3.35945615,92.55,92.511,5.22645765]
[1772658688584,3.35945615,92.56,92.511,5.22645765]
[1772658689494,9.719,92.559,92.514,5.12308625]
[1772658690394,3.35945615,92.55,92.514,5.12308625]
[1772658690894,342.24579471,92.589,92.514,5.12308625]
[1772658692188,3.35945615,92.58,92.514,5.12308625]
[1772658692494,3.35945615,92.58,92.531,5.13304851]
[1772658694589,3.35945615,92.57,92.531,5.13304851]
[1772658695193,9.718,92.569,92.531,5.13304851]
[1772658695898,3.35945615,92.56,92.521,9.723]
[1772658696198,3.35945615,92.56,92.517,5.10542858]
[1772658697396,3.35945615,92.57,92.519,5.11148294]
[1772658698206,3.35945615,92.56,92.519,5.11148294]
[1772658698401,342.24579471,92.589,92.519,5.11148294]
[1772658698402,3.35945615,92.57,92.519,5.11148294]
[1772658698697,3.35945615,92.55,92.5,5.10352567]
[1772658699693,3.35945615,92.55,92.51,9.724]
[1772658699894,3.35945615,92.56,92.51,14.82752567]
[1772658700398,3.35945615,92.55,92.51,14.82752567]
[1772658701402,9.719,92.558,92.51,14.82752567]
[1772658702088,3.35945615,92.56,92.514,5.07426901]
[1772658702500,9.718,92.566,92.514,5.07426901]
[1772658702800,9.719,92.558,92.514,14.79726901]
[1772658702992,26.51246483,92.663,92.499,1.88031879]
[1772658702993,3.35945615,92.58,92.515,5.07426901]
[1772658703192,3.35945615,92.59,92.547,9.72]
[1772658703399,3.35945615,92.59,92.548,5.07426901]
[1772658703600,9.715,92.595,92.548,5.07426901]
[1772658703802,9.714,92.604,92.55,5.07426901]
[1772658704297,3.35945615,92.58,92.521,5.05489913]
[1772658704499,3.35945615,92.58,92.441,33.03566185]
[1772658704500,0.95132028,92.529,92.363,151.506]
[1772658704701,3.35945615,92.49,92.41,3.35945615]
[1772658705000,3.35945615,92.5,92.43,3.35945615]
[1772658705202,3.35945615,92.51,92.43,3.35945615]
[1772658705904,3.35945615,92.5,92.448,9.73]
[1772658706400,3.35945615,92.5,92.43,3.35945615]
[1772658706598,1.21111892,92.519,92.435,3.74297393]
[1772658707403,9.724,92.509,92.439,3.74297393]
[1772658707998,10.93411892,92.519,92.456,9.729]
[1772658708203,10.93411892,92.519,92.436,1.88167101]
[1772658708204,10.93411892,92.519,92.457,3.74297393]
[1772658708606,10.93411892,92.519,92.436,1.88167101]
[1772658708607,1.51574623,92.536,92.459,3.85489298]
[1772658709305,1.51580499,92.555,92.487,3.85489298]
[1772658711203,9.72,92.543,92.487,3.85489298]
[1772658714508,11.32707809,92.543,92.487,3.85489298]
[1772658714708,11.32707809,92.543,92.436,1.88167101]
[1772658714709,1.60707809,92.519,92.45,3.85489298]
[1772658715312,1.60707809,92.519,92.454,3.85489298]
[1772658716404,1.60707809,92.519,92.46,3.85489298]
[1772658717207,1.59966006,92.509,92.437,3.85489298]
[1772658718315,9.726,92.491,92.437,3.85489298]
[1772658719614,1.61714178,92.489,92.437,3.85489298]
[1772658719814,1.61714178,92.489,92.419,3.85489298]
[1772658720012,9.728,92.475,92.419,3.85489298]
[1772658720717,1.60564125,92.506,92.435,3.85489298]
[1772658720913,1.60564125,92.523,92.464,3.85489298]
[1772658721708,9.723,92.521,92.469,3.85489298]
[1772658722015,1.54128742,92.539,92.469,3.85489298]
[1772658722611,9.722,92.523,92.472,3.85489298]
[1772658724512,9.722,92.523,92.473,9.728]
[1772658724711,9.722,92.523,92.474,3.85489298]
[1772658725818,9.722,92.523,92.476,3.85489298]
[1772658728318,9.722,92.523,92.478,3.85489298]
[1772658733923,1.47702833,92.516,92.467,9.728]
[1772658734122,1.47702833,92.516,92.468,3.85489298]
[1772658734718,7.21159254,92.51,92.456,3.85489298]
[1772658734925,7.21159254,92.51,92.435,3.85489298]
[1772658734926,1.50067806,92.509,92.435,3.85489298]
[1772658735924,9.726,92.486,92.435,3.85489298]
[1772658736127,1.46433003,92.489,92.435,3.85489298]
[1772658736328,1.46433003,92.509,92.435,3.85489298]
[1772658736726,1.46433003,92.509,92.452,3.85489298]
[1772658738532,9.724,92.507,92.455,9.73]
[1772658738831,1.46433003,92.509,92.455,9.73]
[1772658739627,9.726,92.492,92.446,9.73]
[1772658740235,1.52357286,92.491,92.436,3.63643206]
[1772658740632,1.52357286,92.472,92.403,3.63643206]